[Event "*** SCC Grand Prix: Titled Tuesday Blitz"]
[Site "Chess.com"]
[Date "2020.07.07"]
[Round "2"]
[White "dey2580"]
[Black "TigrVShlyape"]
[Result "1/2-1/2"]
[WhiteElo "2577"]
[BlackElo "2892"]
[TimeControl "180+1"]
[EndTime "10:18:58 PDT"]
[Termination "Game drawn by repetition"]

1. d4 {[%clk 0:03:00.9]} 1... Nf6 {[%clk 0:02:58]} 2. Nf3 {[%clk 0:03:00.4]}
2... g6 {[%clk 0:02:58.2]} 3. g3 {[%clk 0:02:59.8]} 3... Bg7 {[%clk 0:02:58.7]}
4. Bg2 {[%clk 0:03:00.5]} 4... O-O {[%clk 0:02:58.9]} 5. O-O {[%clk 0:03:01.2]}
5... d6 {[%clk 0:02:56.4]} 6. b3 {[%clk 0:03:01]} 6... Nbd7 {[%clk 0:02:55.3]}
7. Bb2 {[%clk 0:03:01.3]} 7... Re8 {[%clk 0:02:55.4]} 8. Nbd2 {[%clk 0:03:00.5]}
8... e5 {[%clk 0:02:52.5]} 9. dxe5 {[%clk 0:02:56.1]} 9... dxe5 {[%clk
0:02:52.6]} 10. e4 {[%clk 0:02:51.2]} 10... b6 {[%clk 0:02:44.3]} 11. Re1 {[%clk
0:02:48.1]} 11... Bb7 {[%clk 0:02:44.5]} 12. a4 {[%clk 0:02:42.1]} 12... a6
{[%clk 0:02:38]} 13. Nc4 {[%clk 0:01:28.4]} 13... Nxe4 {[%clk 0:01:55.4]} 14.
Ng5 {[%clk 0:01:05.5]} 14... Qxg5 {[%clk 0:01:41.7]} 15. Qxd7 {[%clk 0:01:02.9]}
15... Re7 {[%clk 0:01:05.9]} 16. Qd1 {[%clk 0:00:56.3]} 16... f5 {[%clk
0:01:01.3]} 17. f3 {[%clk 0:00:44.1]} 17... Nc5 {[%clk 0:00:49.6]} 18. Nxe5
{[%clk 0:00:43.7]} 18... f4 {[%clk 0:00:39.8]} 19. gxf4 {[%clk 0:00:40.9]} 19...
Qxf4 {[%clk 0:00:39]} 20. Nc4 {[%clk 0:00:20.5]} 20... Rae8 {[%clk 0:00:32.2]}
21. Rxe7 {[%clk 0:00:19.8]} 21... Rxe7 {[%clk 0:00:32.1]} 22. Bxg7 {[%clk
0:00:20.3]} 22... Kxg7 {[%clk 0:00:31.5]} 23. Qd2 {[%clk 0:00:20.4]} 23... Qxd2
{[%clk 0:00:30.4]} 24. Nxd2 {[%clk 0:00:21.3]} 24... Re2 {[%clk 0:00:29.2]} 25.
Rd1 {[%clk 0:00:21.9]} 25... Ne6 {[%clk 0:00:28.7]} 26. Bf1 {[%clk 0:00:17.7]}
26... Re3 {[%clk 0:00:27.8]} 27. Kf2 {[%clk 0:00:17.1]} 27... Rc3 {[%clk
0:00:27]} 28. Bd3 {[%clk 0:00:15.2]} 28... Nc5 {[%clk 0:00:25.6]} 29. Nc4 {[%clk
0:00:13.4]} 29... Nxd3+ {[%clk 0:00:22]} 30. Rxd3 {[%clk 0:00:14.3]} 30... Rxd3
{[%clk 0:00:19.6]} 31. cxd3 {[%clk 0:00:14.3]} 31... Kf6 {[%clk 0:00:20.2]} 32.
h4 {[%clk 0:00:13.6]} 32... h6 {[%clk 0:00:20.1]} 33. f4 {[%clk 0:00:11.2]}
33... Bd5 {[%clk 0:00:19.8]} 34. b4 {[%clk 0:00:09.1]} 34... Bc6 {[%clk
0:00:17.2]} 35. a5 {[%clk 0:00:08.7]} 35... bxa5 {[%clk 0:00:17.1]} 36. Nxa5
{[%clk 0:00:08.8]} 36... Bd5 {[%clk 0:00:16.9]} 37. Nc4 {[%clk 0:00:07.8]} 37...
Bxc4 {[%clk 0:00:16.9]} 38. dxc4 {[%clk 0:00:08.3]} 38... Ke6 {[%clk 0:00:17]}
39. Ke3 {[%clk 0:00:03.5]} 39... Kd6 {[%clk 0:00:16.3]} 40. Kd4 {[%clk
0:00:03.1]} 40... h5 {[%clk 0:00:09.3]} 41. c5+ {[%clk 0:00:02.3]} 41... Ke6
{[%clk 0:00:09.4]} 42. Ke4 {[%clk 0:00:02.3]} 42... c6 {[%clk 0:00:09.7]} 43.
Ke3 {[%clk 0:00:01.8]} 43... Kf5 {[%clk 0:00:08.7]} 44. Kf3 {[%clk 0:00:02.2]}
44... Kf6 {[%clk 0:00:08.9]} 45. Ke3 {[%clk 0:00:01.9]} 45... Kf5 {[%clk
0:00:08.4]} 46. Kf3 {[%clk 0:00:02.3]} 46... Kf6 {[%clk 0:00:08.3]} 47. Ke3
{[%clk 0:00:02.9]} 47... Kf5 {[%clk 0:00:08.4]} 1/2-1/2

[Event "*** SCC Grand Prix: Titled Tuesday Blitz"]
[Site "Chess.com"]
[Date "2020.07.07"]
[Round "2"]
[White "olksuna"]
[Black "FairChess_on_YouTube"]
[Result "1-0"]
[WhiteElo "2612"]
[BlackElo "2992"]
[TimeControl "180+1"]
[EndTime "10:18:59 PDT"]
[Termination "olksuna won on time"]

1. Nf3 {[%clk 0:03:00.9]} 1... Nf6 {[%clk 0:02:57.8]} 2. g3 {[%clk 0:03:00.4]}
2... d5 {[%clk 0:02:56.5]} 3. Bg2 {[%clk 0:03:00.3]} 3... c6 {[%clk 0:02:52.8]}
4. O-O {[%clk 0:03:00]} 4... h6 {[%clk 0:02:50.2]} 5. c4 {[%clk 0:02:58]} 5...
dxc4 {[%clk 0:02:48]} 6. a4 {[%clk 0:02:55.7]} 6... Be6 {[%clk 0:02:37.4]} 7.
Na3 {[%clk 0:02:52.5]} 7... Bd5 {[%clk 0:02:26.7]} 8. Qc2 {[%clk 0:02:47.7]}
8... Na6 {[%clk 0:02:23.7]} 9. Nxc4 {[%clk 0:02:39.1]} 9... Nb4 {[%clk
0:02:23.3]} 10. Qb3 {[%clk 0:02:39.1]} 10... e6 {[%clk 0:02:17]} 11. a5 {[%clk
0:02:33.3]} 11... Be7 {[%clk 0:01:32.2]} 12. d3 {[%clk 0:02:31.5]} 12... O-O
{[%clk 0:01:31.9]} 13. Bd2 {[%clk 0:02:29.1]} 13... c5 {[%clk 0:01:30.2]} 14.
Bxb4 {[%clk 0:02:25.3]} 14... cxb4 {[%clk 0:01:31.1]} 15. Rfc1 {[%clk
0:02:14.7]} 15... Rc8 {[%clk 0:01:26.5]} 16. Nfd2 {[%clk 0:01:58.5]} 16... Bc5
{[%clk 0:00:55.2]} 17. Qd1 {[%clk 0:01:48.4]} 17... Bxf2+ {[%clk 0:00:31.5]} 18.
Kxf2 {[%clk 0:01:43.8]} 18... Ng4+ {[%clk 0:00:31.9]} 19. Kg1 {[%clk 0:01:34.1]}
19... Bxc4 {[%clk 0:00:21.8]} 20. Rxc4 {[%clk 0:01:08.1]} 20... Rxc4 {[%clk
0:00:21.1]} 21. Nxc4 {[%clk 0:01:08.4]} 21... Qd4+ {[%clk 0:00:20.4]} 22. e3
{[%clk 0:01:08.7]} 22... Nxe3 {[%clk 0:00:20.6]} 23. Nxe3 {[%clk 0:01:08.9]}
23... Qxe3+ {[%clk 0:00:21.2]} 24. Kh1 {[%clk 0:01:09.3]} 24... Rd8 {[%clk
0:00:21.3]} 25. Qe1 {[%clk 0:00:49.7]} 25... Qxd3 {[%clk 0:00:15.4]} 26. Qxb4
{[%clk 0:00:47.6]} 26... Qc2 {[%clk 0:00:12.6]} 27. h4 {[%clk 0:00:41.4]} 27...
Rd2 {[%clk 0:00:11.7]} 28. Qxb7 {[%clk 0:00:40.8]} 28... Qxb2 {[%clk 0:00:08.3]}
29. Qxb2 {[%clk 0:00:37.1]} 29... Rxb2 {[%clk 0:00:09.2]} 30. a6 {[%clk
0:00:35.9]} 30... g5 {[%clk 0:00:08.3]} 31. hxg5 {[%clk 0:00:34.7]} 31... hxg5
{[%clk 0:00:09.2]} 32. Rc1 {[%clk 0:00:31.3]} 32... Ra2 {[%clk 0:00:09.1]} 33.
Bf1 {[%clk 0:00:30.7]} 33... e5 {[%clk 0:00:06]} 34. Rc7 {[%clk 0:00:28.9]}
34... e4 {[%clk 0:00:05.5]} 35. Rxa7 {[%clk 0:00:25.8]} 35... e3 {[%clk
0:00:05.8]} 36. Re7 {[%clk 0:00:25.6]} 36... Ra3 {[%clk 0:00:04.4]} 37. g4
{[%clk 0:00:20.6]} 37... Kg7 {[%clk 0:00:04.4]} 38. Kg2 {[%clk 0:00:19.1]} 38...
Kf6 {[%clk 0:00:04.7]} 39. Re8 {[%clk 0:00:16]} 39... Ra4 {[%clk 0:00:03.5]} 40.
Be2 {[%clk 0:00:15.6]} 40... Kg6 {[%clk 0:00:01.5]} 41. Kf3 {[%clk 0:00:14.4]}
41... f5 {[%clk 0:00:02]} 42. Re6+ {[%clk 0:00:13.1]} 42... Kf7 {[%clk
0:00:01.7]} 43. gxf5 {[%clk 0:00:13.4]} 43... Rf4+ {[%clk 0:00:01.7]} 44. Kxe3
{[%clk 0:00:13.7]} 44... Rxf5 {[%clk 0:00:02.6]} 45. Rb6 {[%clk 0:00:14.1]}
45... Ra5 {[%clk 0:00:02.6]} 46. Rb7+ {[%clk 0:00:14.1]} 46... Ke6 {[%clk
0:00:02.6]} 47. Rb6+ {[%clk 0:00:14.3]} 47... Ke5 {[%clk 0:00:02.7]} 48. Rb5+
{[%clk 0:00:14.5]} 48... Rxb5 {[%clk 0:00:02.7]} 49. Bxb5 {[%clk 0:00:15.4]} 1-0

[Event "*** SCC Grand Prix: Titled Tuesday Blitz"]
[Site "Chess.com"]
[Date "2020.07.07"]
[Round "2"]
[White "Duhless"]
[Black "swisspower96"]
[Result "1-0"]
[WhiteElo "3068"]
[BlackElo "2610"]
[TimeControl "180+1"]
[EndTime "10:19:00 PDT"]
[Termination "Duhless won by resignation"]

1. c4 {[%clk 0:03:00.9]} 1... e5 {[%clk 0:02:59.5]} 2. Nc3 {[%clk 0:03:00.5]}
2... Nf6 {[%clk 0:02:59.8]} 3. Nf3 {[%clk 0:03:00.3]} 3... Nc6 {[%clk
0:02:59.7]} 4. g3 {[%clk 0:03:00.2]} 4... d5 {[%clk 0:02:53.3]} 5. cxd5 {[%clk
0:02:59.7]} 5... Nxd5 {[%clk 0:02:53.8]} 6. Bg2 {[%clk 0:03:00.2]} 6... Bc5
{[%clk 0:02:54.2]} 7. O-O {[%clk 0:02:58.9]} 7... O-O {[%clk 0:02:53.9]} 8. d3
{[%clk 0:02:59.4]} 8... h6 {[%clk 0:02:41.3]} 9. Bd2 {[%clk 0:02:53.6]} 9... Nf6
{[%clk 0:02:39.6]} 10. Rc1 {[%clk 0:02:52.4]} 10... Re8 {[%clk 0:02:37.9]} 11.
a3 {[%clk 0:02:47.4]} 11... Bf8 {[%clk 0:02:32]} 12. b4 {[%clk 0:02:45.2]} 12...
Nd4 {[%clk 0:02:23.7]} 13. Be3 {[%clk 0:02:25.8]} 13... a5 {[%clk 0:02:18.8]}
14. Bxd4 {[%clk 0:02:23.5]} 14... exd4 {[%clk 0:02:15.9]} 15. Nb5 {[%clk
0:02:23.5]} 15... c6 {[%clk 0:02:03.3]} 16. Nbxd4 {[%clk 0:02:22.9]} 16... axb4
{[%clk 0:02:03.1]} 17. axb4 {[%clk 0:02:23.8]} 17... Bxb4 {[%clk 0:02:03.4]} 18.
Qc2 {[%clk 0:02:10.8]} 18... Bg4 {[%clk 0:01:48.5]} 19. h3 {[%clk 0:02:05.3]}
19... Bd7 {[%clk 0:01:48.4]} 20. Nb3 {[%clk 0:01:58.4]} 20... Qe7 {[%clk
0:01:33.4]} 21. e3 {[%clk 0:01:50]} 21... c5 {[%clk 0:01:17.6]} 22. Nxc5 {[%clk
0:01:47.7]} 22... Rac8 {[%clk 0:01:08.8]} 23. d4 {[%clk 0:01:46.6]} 23... b6
{[%clk 0:01:08.5]} 24. Nxd7 {[%clk 0:01:46.5]} 24... Rxc2 {[%clk 0:01:06.2]} 25.
Nxf6+ {[%clk 0:01:46.5]} 25... Qxf6 {[%clk 0:01:06.6]} 26. Rxc2 {[%clk
0:01:47.4]} 26... Bf8 {[%clk 0:00:56.4]} 27. Rb1 {[%clk 0:01:27]} 27... Rb8
{[%clk 0:00:56]} 28. Ne5 {[%clk 0:01:23]} 28... Qf5 {[%clk 0:00:35.7]} 29. Rcb2
{[%clk 0:01:20.1]} 29... Qe6 {[%clk 0:00:31.6]} 30. Nc6 {[%clk 0:01:17.2]} 30...
Re8 {[%clk 0:00:13.8]} 31. Rxb6 {[%clk 0:01:15.4]} 31... Qf5 {[%clk 0:00:13.5]}
32. Ne5 {[%clk 0:01:10.8]} 32... h5 {[%clk 0:00:05.3]} 33. Bd5 {[%clk
0:01:03.1]} 33... Re7 {[%clk 0:00:04.2]} 34. h4 {[%clk 0:00:57]} 34... g6 {[%clk
0:00:04.3]} 35. Rxg6+ {[%clk 0:00:55.1]} 35... Kh7 {[%clk 0:00:03.8]} 36. Rgb6
{[%clk 0:00:46]} 36... Bh6 {[%clk 0:00:03]} 37. Bc4 {[%clk 0:00:42.5]} 37... Kg7
{[%clk 0:00:02.3]} 38. Rb7 {[%clk 0:00:27.7]} 38... Rxb7 {[%clk 0:00:01.8]} 39.
Rxb7 {[%clk 0:00:27.1]} 39... Qc2 {[%clk 0:00:01.7]} 40. Rxf7+ {[%clk
0:00:26.2]} 40... Kh8 {[%clk 0:00:02.2]} 41. Bd3 {[%clk 0:00:18.6]} 41... Qd1+
{[%clk 0:00:02]} 42. Kg2 {[%clk 0:00:18.9]} 42... Bxe3 {[%clk 0:00:01.9]} 43.
fxe3 {[%clk 0:00:18.5]} 43... Qd2+ {[%clk 0:00:02.3]} 44. Rf2 {[%clk 0:00:18.1]}
44... Qxe3 {[%clk 0:00:02.6]} 45. Ng6+ {[%clk 0:00:16.5]} 45... Kg7 {[%clk
0:00:03]} 46. Nf4 {[%clk 0:00:17]} 46... Kh6 {[%clk 0:00:02.1]} 47. d5 {[%clk
0:00:16.5]} 47... Qd4 {[%clk 0:00:02.6]} 48. Re2 {[%clk 0:00:16.2]} 48... Kg7
{[%clk 0:00:02.1]} 49. Ne6+ {[%clk 0:00:15.7]} 1-0

[Event "*** SCC Grand Prix: Titled Tuesday Blitz"]
[Site "Chess.com"]
[Date "2020.07.07"]
[Round "2"]
[White "harkerchess"]
[Black "ichangedmyname_yup"]
[Result "1-0"]
[WhiteElo "2102"]
[BlackElo "2382"]
[TimeControl "180+1"]
[EndTime "10:19:01 PDT"]
[Termination "harkerchess won on time"]

1. c4 {[%clk 0:03:00.9]} 1... e6 {[%clk 0:02:59.2]} 2. e4 {[%clk 0:02:59.4]}
2... c5 {[%clk 0:02:58.8]} 3. Nc3 {[%clk 0:02:58.2]} 3... b6 {[%clk 0:02:59]} 4.
Nf3 {[%clk 0:02:53.5]} 4... Bb7 {[%clk 0:02:58.4]} 5. d4 {[%clk 0:02:52.6]} 5...
cxd4 {[%clk 0:02:58.9]} 6. Nxd4 {[%clk 0:02:53.2]} 6... a6 {[%clk 0:02:59.6]} 7.
Be2 {[%clk 0:02:51.9]} 7... Qc7 {[%clk 0:02:59.9]} 8. Kf1 {[%clk 0:02:51]} 8...
Nf6 {[%clk 0:03:00]} 9. f3 {[%clk 0:02:48]} 9... Bb4 {[%clk 0:02:54.7]} 10. Be3
{[%clk 0:02:48.9]} 10... O-O {[%clk 0:02:54]} 11. Rc1 {[%clk 0:02:47.4]} 11...
Be7 {[%clk 0:02:44.9]} 12. g3 {[%clk 0:02:43.1]} 12... d6 {[%clk 0:02:42.8]} 13.
Kg2 {[%clk 0:02:40.4]} 13... Nbd7 {[%clk 0:02:43.1]} 14. Re1 {[%clk 0:02:37.6]}
14... Rac8 {[%clk 0:02:43.2]} 15. Kg1 {[%clk 0:02:37.1]} 15... Qb8 {[%clk
0:02:43.4]} 16. b3 {[%clk 0:02:34.6]} 16... Bd8 {[%clk 0:02:43.7]} 17. Nc2
{[%clk 0:02:29.9]} 17... Bc7 {[%clk 0:02:44.1]} 18. Nb4 {[%clk 0:02:24.7]} 18...
Rfe8 {[%clk 0:02:35.4]} 19. Nd3 {[%clk 0:02:19.6]} 19... d5 {[%clk 0:02:31.7]}
20. exd5 {[%clk 0:02:15.5]} 20... exd5 {[%clk 0:02:31.4]} 21. Nxd5 {[%clk
0:02:11.6]} 21... Nxd5 {[%clk 0:02:26.3]} 22. cxd5 {[%clk 0:02:08.8]} 22... Rxe3
{[%clk 0:02:26.8]} 23. Qd2 {[%clk 0:02:03.6]} 23... Rce8 {[%clk 0:02:25.6]} 24.
Nb4 {[%clk 0:01:51.6]} 24... Bxg3 {[%clk 0:01:36.4]} 25. hxg3 {[%clk 0:01:40.5]}
25... Qxg3+ {[%clk 0:01:37]} 26. Kf1 {[%clk 0:01:39.8]} 26... Qh3+ {[%clk
0:01:26.8]} 27. Kg1 {[%clk 0:01:32.8]} 27... R8e5 {[%clk 0:01:16.9]} 28. Kf2
{[%clk 0:01:09.5]} 28... Qh2+ {[%clk 0:01:08.6]} 29. Kf1 {[%clk 0:01:04.6]}
29... Rxf3+ {[%clk 0:00:59.4]} 30. Bxf3 {[%clk 0:01:01.3]} 30... Qxd2 {[%clk
0:00:59.7]} 31. Nc6 {[%clk 0:00:58]} 31... Qd3+ {[%clk 0:00:45.4]} 32. Kf2
{[%clk 0:00:52.7]} 32... Bxc6 {[%clk 0:00:38.1]} 33. dxc6 {[%clk 0:00:50.3]}
33... Qd2+ {[%clk 0:00:18.6]} 34. Kf1 {[%clk 0:00:47.4]} 34... Qd3+ {[%clk
0:00:17.6]} 35. Kf2 {[%clk 0:00:47.3]} 35... Rf5 {[%clk 0:00:13.2]} 36. Re3
{[%clk 0:00:18.4]} 36... Qd2+ {[%clk 0:00:12.7]} 37. Re2 {[%clk 0:00:17.7]}
37... Qd4+ {[%clk 0:00:05.6]} 38. Kg2 {[%clk 0:00:16.6]} 38... Ne5 {[%clk
0:00:03.3]} 39. c7 {[%clk 0:00:15.4]} 39... g6 {[%clk 0:00:01.3]} 40. c8=Q+
{[%clk 0:00:15.4]} 40... Kg7 {[%clk 0:00:01.9]} 41. Qc3 {[%clk 0:00:13.8]} 41...
Qf4 {[%clk 0:00:01.5]} 42. Rxe5 {[%clk 0:00:11.9]} 42... Rxe5 {[%clk 0:00:01.3]}
43. Re1 {[%clk 0:00:09.9]} 43... Qg5+ {[%clk 0:00:01.7]} 44. Kf1 {[%clk
0:00:09.2]} 44... f6 {[%clk 0:00:01]} 45. Qc7+ {[%clk 0:00:08.6]} 1-0

[Event "*** SCC Grand Prix: Titled Tuesday Blitz"]
[Site "Chess.com"]
[Date "2020.07.07"]
[Round "2"]
[White "profofchess"]
[Black "Bigfish1995"]
[Result "0-1"]
[WhiteElo "2459"]
[BlackElo "3060"]
[TimeControl "180+1"]
[EndTime "10:19:03 PDT"]
[Termination "Bigfish1995 won by resignation"]

1. e4 {[%clk 0:03:00.9]} 1... e6 {[%clk 0:02:57.2]} 2. d4 {[%clk 0:02:59.5]}
2... d5 {[%clk 0:02:57]} 3. Nc3 {[%clk 0:02:57.3]} 3... Bb4 {[%clk 0:02:56.8]}
4. exd5 {[%clk 0:02:57.3]} 4... exd5 {[%clk 0:02:56.6]} 5. Bd3 {[%clk
0:02:55.8]} 5... c6 {[%clk 0:02:52.5]} 6. Nf3 {[%clk 0:02:52.3]} 6... Nf6 {[%clk
0:02:49.9]} 7. O-O {[%clk 0:02:51.7]} 7... O-O {[%clk 0:02:49.4]} 8. Ne2 {[%clk
0:02:51.6]} 8... Ne4 {[%clk 0:02:46.7]} 9. Ng3 {[%clk 0:02:47.8]} 9... f5 {[%clk
0:02:41.7]} 10. Ne5 {[%clk 0:02:40.7]} 10... Be6 {[%clk 0:02:38.8]} 11. f3
{[%clk 0:02:24.1]} 11... Nd6 {[%clk 0:02:27.9]} 12. c3 {[%clk 0:01:58.8]} 12...
Ba5 {[%clk 0:02:27.9]} 13. Ne2 {[%clk 0:01:48.7]} 13... Nf7 {[%clk 0:02:21.1]}
14. Nf4 {[%clk 0:01:46]} 14... Bc8 {[%clk 0:02:21.1]} 15. Re1 {[%clk 0:01:28.8]}
15... Nxe5 {[%clk 0:02:18.9]} 16. Rxe5 {[%clk 0:01:29.7]} 16... Bc7 {[%clk
0:02:15.8]} 17. Re1 {[%clk 0:01:17.7]} 17... Re8 {[%clk 0:02:01.8]} 18. Bd2
{[%clk 0:01:14.8]} 18... a5 {[%clk 0:01:52.2]} 19. Rxe8+ {[%clk 0:01:11.9]}
19... Qxe8 {[%clk 0:01:52.1]} 20. Qe1 {[%clk 0:01:12.8]} 20... Qf7 {[%clk
0:01:51.9]} 21. Qe2 {[%clk 0:01:00.9]} 21... Nd7 {[%clk 0:01:48.9]} 22. Re1
{[%clk 0:00:56.4]} 22... Nf8 {[%clk 0:01:48.4]} 23. Qe7 {[%clk 0:00:54.9]} 23...
Bd7 {[%clk 0:01:48.4]} 24. Qxf7+ {[%clk 0:00:50.4]} 24... Kxf7 {[%clk
0:01:43.3]} 25. h4 {[%clk 0:00:50]} 25... Ng6 {[%clk 0:01:30.5]} 26. Nxg6 {[%clk
0:00:42.6]} 26... hxg6 {[%clk 0:01:31.4]} 27. Kf2 {[%clk 0:00:37.4]} 27... f4
{[%clk 0:01:25.8]} 28. c4 {[%clk 0:00:21.5]} 28... Rh8 {[%clk 0:01:23.1]} 29.
cxd5 {[%clk 0:00:20.6]} 29... cxd5 {[%clk 0:01:22.5]} 30. Rc1 {[%clk 0:00:19.5]}
30... Bc6 {[%clk 0:00:57.8]} 31. Bb5 {[%clk 0:00:18.7]} 31... Bb6 {[%clk
0:00:58]} 32. Bxc6 {[%clk 0:00:16]} 32... Bxd4+ {[%clk 0:00:58.6]} 33. Ke2
{[%clk 0:00:15.5]} 33... bxc6 {[%clk 0:00:59.2]} 34. Rxc6 {[%clk 0:00:15.2]}
34... Rxh4 {[%clk 0:00:58.3]} 35. Bxa5 {[%clk 0:00:12.8]} 35... Rh2 {[%clk
0:00:58.1]} 36. Kd3 {[%clk 0:00:12.8]} 36... Bxb2 {[%clk 0:00:56.3]} 37. Rc2
{[%clk 0:00:12.7]} 37... Ba3 {[%clk 0:00:56.5]} 38. Bc7 {[%clk 0:00:12.5]} 38...
g5 {[%clk 0:00:55.8]} 39. Kc3 {[%clk 0:00:09.4]} 39... Rh1 {[%clk 0:00:54.7]}
40. Kb3 {[%clk 0:00:09.1]} 40... Be7 {[%clk 0:00:54.7]} 41. Be5 {[%clk
0:00:09.1]} 41... Re1 {[%clk 0:00:53.2]} 42. Bd4 {[%clk 0:00:07.7]} 42... Rd1
{[%clk 0:00:52.8]} 43. Bb2 {[%clk 0:00:05.4]} 43... Rd3+ {[%clk 0:00:50.5]} 44.
Rc3 {[%clk 0:00:05.2]} 44... Rd1 {[%clk 0:00:42.4]} 45. Rc1 {[%clk 0:00:04.5]}
45... Rxc1 {[%clk 0:00:33]} 46. Bxc1 {[%clk 0:00:04.5]} 46... Ke6 {[%clk
0:00:33.4]} 47. a4 {[%clk 0:00:04.3]} 47... Bc5 {[%clk 0:00:26.7]} 48. Bb2
{[%clk 0:00:04.5]} 48... g6 {[%clk 0:00:25.9]} 49. a5 {[%clk 0:00:04.7]} 49...
Be3 {[%clk 0:00:18.6]} 50. Bc1 {[%clk 0:00:02.2]} 50... Bxc1 {[%clk 0:00:18.1]}
51. Kc2 {[%clk 0:00:02]} 51... Be3 {[%clk 0:00:19]} 52. Kd3 {[%clk 0:00:02.3]}
52... Kd6 {[%clk 0:00:19.5]} 0-1

[Event "*** SCC Grand Prix: Titled Tuesday Blitz"]
[Site "Chess.com"]
[Date "2020.07.07"]
[Round "2"]
[White "chenxiaoyuer"]
[Black "FMalexhdez"]
[Result "1-0"]
[WhiteElo "2408"]
[BlackElo "2119"]
[TimeControl "180+1"]
[EndTime "10:19:03 PDT"]
[Termination "chenxiaoyuer won by resignation"]

1. e4 {[%clk 0:03:00.9]} 1... c5 {[%clk 0:02:59.7]} 2. Nf3 {[%clk 0:03:01.2]}
2... d6 {[%clk 0:02:59.8]} 3. d4 {[%clk 0:03:01.6]} 3... cxd4 {[%clk 0:03:00.1]}
4. Nxd4 {[%clk 0:03:02.2]} 4... Nf6 {[%clk 0:03:00.6]} 5. Nc3 {[%clk 0:03:02.7]}
5... a6 {[%clk 0:03:01.1]} 6. Be2 {[%clk 0:03:03.2]} 6... e5 {[%clk 0:03:01.3]}
7. Nb3 {[%clk 0:03:03.5]} 7... Be6 {[%clk 0:03:01.6]} 8. O-O {[%clk 0:03:02.9]}
8... Nbd7 {[%clk 0:03:02]} 9. f4 {[%clk 0:03:02]} 9... exf4 {[%clk 0:03:01.1]}
10. Bxf4 {[%clk 0:03:02.9]} 10... Ne5 {[%clk 0:02:58.5]} 11. Kh1 {[%clk
0:03:03.4]} 11... Be7 {[%clk 0:02:58]} 12. Qe1 {[%clk 0:03:03.4]} 12... O-O
{[%clk 0:02:57.7]} 13. Rd1 {[%clk 0:03:03.8]} 13... Qc7 {[%clk 0:02:54.7]} 14.
Nd4 {[%clk 0:03:02.9]} 14... Nfd7 {[%clk 0:02:35.9]} 15. Qg3 {[%clk 0:02:58.4]}
15... Bf6 {[%clk 0:02:29.7]} 16. Nf5 {[%clk 0:02:51]} 16... Bxf5 {[%clk
0:02:26.4]} 17. exf5 {[%clk 0:02:51.9]} 17... Nb6 {[%clk 0:02:16.2]} 18. Be3
{[%clk 0:02:40.3]} 18... Rfe8 {[%clk 0:01:51.6]} 19. Bxb6 {[%clk 0:02:37.4]}
19... Qxb6 {[%clk 0:01:51.4]} 20. Nd5 {[%clk 0:02:38]} 20... Qd8 {[%clk
0:01:51.1]} 21. Bf3 {[%clk 0:02:32.8]} 21... Rc8 {[%clk 0:01:47.8]} 22. c3
{[%clk 0:02:30]} 22... Nxf3 {[%clk 0:01:46.3]} 23. Qxf3 {[%clk 0:02:28.9]} 23...
Re5 {[%clk 0:01:40.6]} 24. Rfe1 {[%clk 0:02:25.4]} 24... h6 {[%clk 0:01:26]} 25.
Rxe5 {[%clk 0:02:21.3]} 25... Bxe5 {[%clk 0:01:25.1]} 26. Re1 {[%clk 0:02:12.7]}
26... Qh4 {[%clk 0:01:24.1]} 27. g3 {[%clk 0:02:08.9]} 27... Qg5 {[%clk
0:01:16]} 28. Kg2 {[%clk 0:01:42]} 28... Rc4 {[%clk 0:01:12.4]} 29. Re2 {[%clk
0:01:31.7]} 29... b5 {[%clk 0:01:09.8]} 30. Ne3 {[%clk 0:01:27.1]} 30... Rc5
{[%clk 0:01:01.5]} 31. a3 {[%clk 0:01:22.3]} 31... Kh7 {[%clk 0:01:00.3]} 32. h4
{[%clk 0:01:17.7]} 32... Qe7 {[%clk 0:00:51.1]} 33. Qe4 {[%clk 0:01:07.2]} 33...
f6 {[%clk 0:00:49.6]} 34. Nd5 {[%clk 0:00:56.5]} 34... Qf7 {[%clk 0:00:48.7]}
35. Rd2 {[%clk 0:00:53.6]} 35... a5 {[%clk 0:00:43.9]} 36. Ne3 {[%clk
0:00:51.9]} 36... b4 {[%clk 0:00:40.4]} 37. axb4 {[%clk 0:00:51.5]} 37... axb4
{[%clk 0:00:40.3]} 38. Qxb4 {[%clk 0:00:49.8]} 38... Qa7 {[%clk 0:00:34.5]} 39.
Qe4 {[%clk 0:00:47.5]} 39... Qa1 {[%clk 0:00:30.7]} 40. Qg4 {[%clk 0:00:39.5]}
40... Qe1 {[%clk 0:00:28.6]} 41. Re2 {[%clk 0:00:34.8]} 41... Qc1 {[%clk
0:00:22.7]} 42. Nf1 {[%clk 0:00:25.1]} 42... Rd5 {[%clk 0:00:20.6]} 43. Rf2
{[%clk 0:00:13.5]} 43... Rd1 {[%clk 0:00:19.3]} 44. Qg6+ {[%clk 0:00:12.1]}
44... Kh8 {[%clk 0:00:18.5]} 45. Qe8+ {[%clk 0:00:10.1]} 45... Kh7 {[%clk
0:00:18.3]} 46. h5 {[%clk 0:00:09.6]} 46... Rd3 {[%clk 0:00:14.9]} 47. Qg6+
{[%clk 0:00:08.8]} 47... Kh8 {[%clk 0:00:14.6]} 48. Qg4 {[%clk 0:00:09.3]} 48...
Qe1 {[%clk 0:00:11.4]} 49. Qe2 {[%clk 0:00:08.8]} 49... Qb1 {[%clk 0:00:08.4]}
50. Nd2 {[%clk 0:00:08.2]} 50... Qc2 {[%clk 0:00:07.8]} 51. Nf3 {[%clk
0:00:07.8]} 51... Qd2 {[%clk 0:00:07.2]} 52. Nxd2 {[%clk 0:00:07.4]} 1-0